[Event "*** SCC Grand Prix: Titled Tuesday Blitz"]
[Site "Chess.com"]
[Date "2020.07.14"]
[Round "10"]
[White "Maxim_e2e4"]
[Black "novocane"]
[Result "1-0"]
[WhiteElo "2409"]
[BlackElo "2266"]
[TimeControl "180+1"]
[EndTime "12:00:47 PDT"]
[Termination "Maxim_e2e4 won by resignation"]

1. e4 {[%clk 0:03:00.9]} 1... c5 {[%clk 0:02:59.7]} 2. Nf3 {[%clk 0:03:00.7]}
2... Nc6 {[%clk 0:02:59.8]} 3. d4 {[%clk 0:03:00.6]} 3... cxd4 {[%clk
0:03:00.3]} 4. Nxd4 {[%clk 0:03:01.5]} 4... e5 {[%clk 0:03:01]} 5. Nb5 {[%clk
0:03:01.2]} 5... d6 {[%clk 0:03:01.3]} 6. c4 {[%clk 0:03:01.8]} 6... Be7 {[%clk
0:03:01.3]} 7. N5c3 {[%clk 0:03:00.3]} 7... Be6 {[%clk 0:02:54]} 8. Be2 {[%clk
0:02:59.5]} 8... Bg5 {[%clk 0:02:53.4]} 9. Bxg5 {[%clk 0:02:59.1]} 9... Qxg5
{[%clk 0:02:53.3]} 10. Nb5 {[%clk 0:03:00]} 10... Rd8 {[%clk 0:02:35.8]} 11.
Nc7+ {[%clk 0:02:41.7]} 11... Kf8 {[%clk 0:02:31]} 12. O-O {[%clk 0:02:40.3]}
12... Nf6 {[%clk 0:02:30.7]} 13. Nc3 {[%clk 0:02:39.5]} 13... Nd4 {[%clk
0:02:19.1]} 14. Nxe6+ {[%clk 0:02:34.5]} 14... fxe6 {[%clk 0:02:17.2]} 15. f4
{[%clk 0:02:20]} 15... Qh6 {[%clk 0:02:07.3]} 16. c5 {[%clk 0:02:09.8]} 16...
Nxe2+ {[%clk 0:01:32.3]} 17. Qxe2 {[%clk 0:02:07.9]} 17... exf4 {[%clk
0:01:24.4]} 18. cxd6 {[%clk 0:02:00.9]} 18... e5 {[%clk 0:01:23.4]} 19. Qb5
{[%clk 0:01:48.8]} 19... Ng4 {[%clk 0:01:13.3]} 20. h3 {[%clk 0:01:43.8]} 20...
Ne3 {[%clk 0:01:10.2]} 21. Qxe5 {[%clk 0:01:26]} 21... Rxd6 {[%clk 0:00:49.9]}
22. Rxf4+ {[%clk 0:01:21.5]} 22... Rf6 {[%clk 0:00:49.5]} 23. Rxf6+ {[%clk
0:00:51.5]} 23... gxf6 {[%clk 0:00:45.7]} 24. Qc5+ {[%clk 0:00:41.5]} 24... Kg7
{[%clk 0:00:45.1]} 25. Qe7+ {[%clk 0:00:40]} 25... Kg6 {[%clk 0:00:44.9]} 26.
Re1 {[%clk 0:00:34.2]} 26... Qg5 {[%clk 0:00:40]} 27. Re2 {[%clk 0:00:33.9]}
27... Rc8 {[%clk 0:00:32]} 28. Qe6 {[%clk 0:00:27.5]} 28... Rd8 {[%clk
0:00:28.9]} 29. Nd5 {[%clk 0:00:17.1]} 29... Nxd5 {[%clk 0:00:24.6]} 30. exd5
{[%clk 0:00:18]} 30... Qxd5 {[%clk 0:00:23.9]} 31. Qg4+ {[%clk 0:00:17.7]} 31...
Qg5 {[%clk 0:00:23.5]} 32. Qxg5+ {[%clk 0:00:16.1]} 32... fxg5 {[%clk
0:00:17.9]} 33. Re7 {[%clk 0:00:17]} 33... Rd1+ {[%clk 0:00:16.3]} 34. Kh2
{[%clk 0:00:16.1]} 34... Rd2 {[%clk 0:00:12]} 35. Rxb7 {[%clk 0:00:16]} 35... a5
{[%clk 0:00:12.7]} 36. a3 {[%clk 0:00:13.6]} 36... a4 {[%clk 0:00:12.3]} 37. Rb4
{[%clk 0:00:13.2]} 37... h5 {[%clk 0:00:11.8]} 38. h4 {[%clk 0:00:10.6]} 38...
gxh4 {[%clk 0:00:07.3]} 39. Rxh4 {[%clk 0:00:09.7]} 39... Rxb2 {[%clk 0:00:07]}
40. Rxa4 {[%clk 0:00:10.4]} 40... Ra2 {[%clk 0:00:05.1]} 41. Ra5 {[%clk
0:00:08.3]} 41... Rb2 {[%clk 0:00:04.1]} 42. Kh3 {[%clk 0:00:07.7]} 42... Rb3+
{[%clk 0:00:03.6]} 43. Kh4 {[%clk 0:00:07.7]} 43... Rb2 {[%clk 0:00:03]} 44.
Ra6+ {[%clk 0:00:05.6]} 44... Kf5 {[%clk 0:00:02.4]} 45. Kh3 {[%clk 0:00:04.8]}
45... Kg5 {[%clk 0:00:02]} 46. g3 {[%clk 0:00:04.7]} 46... Ra2 {[%clk
0:00:02.2]} 47. Ra5+ {[%clk 0:00:04.7]} 47... Kg6 {[%clk 0:00:02.4]} 48. Ra6+
{[%clk 0:00:04.5]} 48... Kg5 {[%clk 0:00:02.5]} 49. a4 {[%clk 0:00:04.9]} 49...
Ra3 {[%clk 0:00:02.8]} 50. Ra5+ {[%clk 0:00:04.6]} 50... Kg6 {[%clk 0:00:03.1]}
51. Kh4 {[%clk 0:00:04.3]} 51... Ra2 {[%clk 0:00:02.9]} 52. Rg5+ {[%clk
0:00:03.4]} 52... Kf6 {[%clk 0:00:03.3]} 53. Kxh5 {[%clk 0:00:03.2]} 53... Rh2+
{[%clk 0:00:03.2]} 54. Kg4 {[%clk 0:00:03.2]} 54... Ra2 {[%clk 0:00:03.2]} 55.
Rf5+ {[%clk 0:00:03.6]} 55... Kg6 {[%clk 0:00:03.7]} 56. Rf4 {[%clk 0:00:04.5]}
56... Rb2 {[%clk 0:00:03.6]} 57. Rc4 {[%clk 0:00:04.7]} 57... Ra2 {[%clk
0:00:04]} 58. Rc6+ {[%clk 0:00:04.8]} 58... Kf7 {[%clk 0:00:04.3]} 59. Rc7+
{[%clk 0:00:05.7]} 59... Kg6 {[%clk 0:00:04.5]} 60. Rc4 {[%clk 0:00:06.6]} 60...
Rg2 {[%clk 0:00:04.5]} 61. Rc6+ {[%clk 0:00:06.8]} 61... Kg7 {[%clk 0:00:04.8]}
62. a5 {[%clk 0:00:07.4]} 62... Ra2 {[%clk 0:00:04.9]} 63. a6 {[%clk 0:00:08]}
63... Ra5 {[%clk 0:00:05.1]} 64. Rc7+ {[%clk 0:00:08.1]} 64... Kg6 {[%clk
0:00:05.4]} 65. a7 {[%clk 0:00:09]} 65... Ra4+ {[%clk 0:00:05.4]} 66. Kh3 {[%clk
0:00:09.6]} 66... Ra3 {[%clk 0:00:05.8]} 67. Rb7 {[%clk 0:00:10]} 67... Ra4
{[%clk 0:00:05.3]} 68. Kg2 {[%clk 0:00:10.5]} 68... Ra3 {[%clk 0:00:05.6]} 69.
Kf2 {[%clk 0:00:10.8]} 69... Kg5 {[%clk 0:00:06.1]} 70. Ke2 {[%clk 0:00:11.1]}
70... Kg4 {[%clk 0:00:06.6]} 71. Kd2 {[%clk 0:00:11.5]} 71... Kxg3 {[%clk
0:00:06.3]} 72. Kc2 {[%clk 0:00:11.8]} 72... Kf4 {[%clk 0:00:06.5]} 73. Kb2
{[%clk 0:00:11.7]} 73... Ra6 {[%clk 0:00:06.8]} 74. Kb3 {[%clk 0:00:11.4]} 74...
Ke5 {[%clk 0:00:07.1]} 75. Kb4 {[%clk 0:00:09.6]} 75... Ra1 {[%clk 0:00:06.3]}
76. Rb5+ {[%clk 0:00:09.1]} 76... Kd6 {[%clk 0:00:06.6]} 77. Ra5 {[%clk
0:00:10]} 77... Rb1+ {[%clk 0:00:04]} 78. Kc3 {[%clk 0:00:09.7]} 78... Rc1+
{[%clk 0:00:03.8]} 79. Kd2 {[%clk 0:00:09.8]} 1-0

[Event "*** SCC Grand Prix: Titled Tuesday Blitz"]
[Site "Chess.com"]
[Date "2020.07.14"]
[Round "10"]
[White "Yoshikrov"]
[Black "jannat65"]
[Result "1-0"]
[WhiteElo "2099"]
[BlackElo "1822"]
[TimeControl "180+1"]
[EndTime "12:00:53 PDT"]
[Termination "Yoshikrov won by checkmate"]

1. e4 {[%clk 0:03:00.9]} 1... c5 {[%clk 0:02:59.8]} 2. Nf3 {[%clk 0:03:00.6]}
2... Nc6 {[%clk 0:02:59.9]} 3. d4 {[%clk 0:03:01]} 3... cxd4 {[%clk 0:03:00.8]}
4. Nxd4 {[%clk 0:03:00.7]} 4... Nf6 {[%clk 0:03:01]} 5. Nc3 {[%clk 0:03:00.6]}
5... e5 {[%clk 0:03:01.1]} 6. Ndb5 {[%clk 0:02:59.9]} 6... d6 {[%clk 0:03:01.4]}
7. Bg5 {[%clk 0:02:58.4]} 7... a6 {[%clk 0:03:01.2]} 8. Na3 {[%clk 0:02:57.5]}
8... b5 {[%clk 0:02:57.6]} 9. Bxf6 {[%clk 0:02:57.3]} 9... gxf6 {[%clk
0:02:55.4]} 10. Nd5 {[%clk 0:02:57.1]} 10... f5 {[%clk 0:02:53.2]} 11. c3 {[%clk
0:02:57.3]} 11... fxe4 {[%clk 0:02:48.3]} 12. Bxb5 {[%clk 0:02:56.7]} 12... Bb7
{[%clk 0:02:38.6]} 13. Ba4 {[%clk 0:02:24.7]} 13... Bg7 {[%clk 0:02:36.1]} 14.
Nc4 {[%clk 0:02:20]} 14... O-O {[%clk 0:02:14.5]} 15. Ndb6 {[%clk 0:02:18.3]}
15... Rb8 {[%clk 0:02:08.7]} 16. Qxd6 {[%clk 0:02:12.4]} 16... Qg5 {[%clk
0:02:03.9]} 17. Bxc6 {[%clk 0:01:54]} 17... Rfd8 {[%clk 0:01:36.7]} 18. Bd7
{[%clk 0:01:18.8]} 18... e3 {[%clk 0:01:04.2]} 19. Nxe3 {[%clk 0:01:03]} 19...
Bf8 {[%clk 0:00:59]} 20. Qc7 {[%clk 0:00:51.4]} 20... Be4 {[%clk 0:00:39.3]} 21.
Rd1 {[%clk 0:00:45.1]} 21... Kh8 {[%clk 0:00:31]} 22. h4 {[%clk 0:00:45]} 22...
Qf6 {[%clk 0:00:21.7]} 23. Nbd5 {[%clk 0:00:35.8]} 23... Bxd5 {[%clk 0:00:20]}
24. Nxd5 {[%clk 0:00:36.1]} 24... Qg6 {[%clk 0:00:20.1]} 25. Qxe5+ {[%clk
0:00:34.5]} 25... Bg7 {[%clk 0:00:19.9]} 26. Qf5 {[%clk 0:00:34.8]} 26... Re8+
{[%clk 0:00:13.5]} 27. Kf1 {[%clk 0:00:34.9]} 27... Qh6 {[%clk 0:00:09.9]} 28.
g4 {[%clk 0:00:31.7]} 28... Red8 {[%clk 0:00:07.8]} 29. g5 {[%clk 0:00:28.2]}
29... Qd6 {[%clk 0:00:07.8]} 30. Ne3 {[%clk 0:00:26.2]} 30... Qb6 {[%clk
0:00:07.3]} 31. h5 {[%clk 0:00:23.4]} 31... Qxb2 {[%clk 0:00:07.1]} 32. h6
{[%clk 0:00:20.6]} 32... Bxc3 {[%clk 0:00:07.1]} 33. Kg2 {[%clk 0:00:18.2]}
33... Qb7+ {[%clk 0:00:06.3]} 34. Kg1 {[%clk 0:00:15]} 34... Qc7 {[%clk
0:00:06]} 35. Nd5 {[%clk 0:00:13.1]} 35... Qe5 {[%clk 0:00:05.7]} 36. Qxe5+
{[%clk 0:00:12.1]} 36... Bxe5 {[%clk 0:00:06.6]} 37. Nf6 {[%clk 0:00:12.6]}
37... Bxf6 {[%clk 0:00:06.5]} 38. gxf6 {[%clk 0:00:12.5]} 38... Rb7 {[%clk
0:00:07.2]} 39. Bg4 {[%clk 0:00:11.6]} 39... Rxd1+ {[%clk 0:00:06]} 40. Bxd1
{[%clk 0:00:11.7]} 40... Rb6 {[%clk 0:00:06.6]} 41. Kg2 {[%clk 0:00:10.2]} 41...
Rxf6 {[%clk 0:00:07.2]} 42. Bf3 {[%clk 0:00:11.1]} 42... Rg6+ {[%clk 0:00:06.2]}
43. Kf1 {[%clk 0:00:10.6]} 43... Kg8 {[%clk 0:00:07]} 44. Ke2 {[%clk 0:00:11]}
44... Kf8 {[%clk 0:00:07.4]} 45. Rh5 {[%clk 0:00:09.5]} 45... Ke7 {[%clk
0:00:07.6]} 46. a4 {[%clk 0:00:09.4]} 46... Re6+ {[%clk 0:00:07.3]} 47. Kd3
{[%clk 0:00:09.1]} 47... Kd6 {[%clk 0:00:07.4]} 48. a5 {[%clk 0:00:06]} 48...
Kc7 {[%clk 0:00:07.1]} 49. Kc4 {[%clk 0:00:05.9]} 49... Rf6 {[%clk 0:00:07.1]}
50. Rh3 {[%clk 0:00:04.8]} 50... Rg6 {[%clk 0:00:06.3]} 51. Bd5 {[%clk
0:00:04.2]} 51... Rg4+ {[%clk 0:00:05]} 52. Kc5 {[%clk 0:00:03.9]} 52... Rg5
{[%clk 0:00:03.6]} 53. f4 {[%clk 0:00:03.9]} 53... Rg1 {[%clk 0:00:02.8]} 54.
Bxf7 {[%clk 0:00:03.2]} 54... Rc1+ {[%clk 0:00:03.3]} 55. Kd4 {[%clk 0:00:03.6]}
55... Rf1 {[%clk 0:00:03.2]} 56. Ke4 {[%clk 0:00:03.4]} 56... Ra1 {[%clk
0:00:03.9]} 57. Bg8 {[%clk 0:00:03.2]} 57... Rxa5 {[%clk 0:00:03.6]} 58. Bxh7
{[%clk 0:00:03.3]} 58... Ra4+ {[%clk 0:00:04.2]} 59. Kf3 {[%clk 0:00:03.7]}
59... Rb4 {[%clk 0:00:04.4]} 60. Kg4 {[%clk 0:00:04]} 60... Rc4 {[%clk
0:00:04.1]} 61. Bf5 {[%clk 0:00:04.6]} 61... Rd4 {[%clk 0:00:04.6]} 62. h7
{[%clk 0:00:05.1]} 62... Rd8 {[%clk 0:00:04.9]} 63. h8=Q {[%clk 0:00:06]} 63...
Rxh8 {[%clk 0:00:05.4]} 64. Rxh8 {[%clk 0:00:06.6]} 64... a5 {[%clk 0:00:06.3]}
65. Rh6 {[%clk 0:00:06.8]} 65... a4 {[%clk 0:00:07.2]} 66. Bb1 {[%clk 0:00:07]}
66... a3 {[%clk 0:00:06.8]} 67. Ba2 {[%clk 0:00:07.9]} 67... Kb7 {[%clk
0:00:06.5]} 68. f5 {[%clk 0:00:08.4]} 68... Kc7 {[%clk 0:00:06.9]} 69. Re6
{[%clk 0:00:09.3]} 69... Kd7 {[%clk 0:00:07.3]} 70. Re1 {[%clk 0:00:10.2]} 70...
Kd6 {[%clk 0:00:07.1]} 71. f6 {[%clk 0:00:10.6]} 71... Kd7 {[%clk 0:00:07.6]}
72. f7 {[%clk 0:00:11.2]} 72... Kd6 {[%clk 0:00:04.1]} 73. f8=Q+ {[%clk
0:00:11.1]} 73... Kd7 {[%clk 0:00:04.6]} 74. Qf2 {[%clk 0:00:12]} 74... Kc7
{[%clk 0:00:04.5]} 75. Qd2 {[%clk 0:00:12.9]} 75... Kc6 {[%clk 0:00:04.7]} 76.
Rc1+ {[%clk 0:00:13.2]} 76... Kb6 {[%clk 0:00:04.5]} 77. Rc3 {[%clk 0:00:12.8]}
77... Kb5 {[%clk 0:00:03.9]} 78. Rxa3 {[%clk 0:00:12.7]} 78... Kc5 {[%clk
0:00:02.5]} 79. Rc3+ {[%clk 0:00:12.8]} 79... Kb4 {[%clk 0:00:02.3]} 80. Qb2+
{[%clk 0:00:13.7]} 80... Ka4 {[%clk 0:00:01.7]} 81. Ra3# {[%clk 0:00:14.6]} 1-0

[Event "*** SCC Grand Prix: Titled Tuesday Blitz"]
[Site "Chess.com"]
[Date "2020.07.14"]
[Round "10"]
[White "Kildepiotr"]
[Black "Jbd735"]
[Result "1/2-1/2"]
[WhiteElo "2599"]
[BlackElo "2472"]
[TimeControl "180+1"]
[EndTime "12:00:58 PDT"]
[Termination "Game drawn by repetition"]

1. Nf3 {[%clk 0:03:00.9]} 1... d5 {[%clk 0:02:59.5]} 2. g3 {[%clk 0:03:00.8]}
2... Nf6 {[%clk 0:02:58.7]} 3. Bg2 {[%clk 0:03:01.4]} 3... c6 {[%clk 0:02:59.3]}
4. O-O {[%clk 0:03:01.9]} 4... Bf5 {[%clk 0:02:59.5]} 5. d3 {[%clk 0:03:02.5]}
5... e6 {[%clk 0:02:59.7]} 6. Nbd2 {[%clk 0:03:03]} 6... h6 {[%clk 0:03:00]} 7.
Qe1 {[%clk 0:03:03.4]} 7... Bh7 {[%clk 0:02:56.9]} 8. e4 {[%clk 0:03:03.3]} 8...
Be7 {[%clk 0:02:56]} 9. Qe2 {[%clk 0:03:03.2]} 9... O-O {[%clk 0:02:56]} 10. b3
{[%clk 0:03:03.2]} 10... a5 {[%clk 0:02:53.5]} 11. a4 {[%clk 0:03:03.1]} 11...
Na6 {[%clk 0:02:51.7]} 12. Bb2 {[%clk 0:03:03.1]} 12... dxe4 {[%clk 0:02:39.1]}
13. dxe4 {[%clk 0:03:02.8]} 13... Nb4 {[%clk 0:02:33.9]} 14. Rfd1 {[%clk
0:02:51.9]} 14... Qc8 {[%clk 0:02:17.1]} 15. Nc4 {[%clk 0:02:45.1]} 15... Bc5
{[%clk 0:02:02.5]} 16. Nfe5 {[%clk 0:02:36.9]} 16... Qc7 {[%clk 0:01:49.8]} 17.
Nd3 {[%clk 0:02:30.3]} 17... Nxd3 {[%clk 0:01:44.5]} 18. Rxd3 {[%clk 0:02:31.2]}
18... Rfd8 {[%clk 0:01:17.9]} 19. Be5 {[%clk 0:02:24.4]} 19... Qe7 {[%clk
0:01:12.4]} 20. Rad1 {[%clk 0:02:18.2]} 20... Rxd3 {[%clk 0:01:05.6]} 21. Rxd3
{[%clk 0:02:11.9]} 21... b5 {[%clk 0:00:55.2]} 22. Nd2 {[%clk 0:01:58.4]} 22...
Rd8 {[%clk 0:00:50.1]} 23. Bf3 {[%clk 0:01:44.7]} 23... Rxd3 {[%clk 0:00:47.8]}
24. Qxd3 {[%clk 0:01:44.5]} 24... Qd7 {[%clk 0:00:41.3]} 25. Bxf6 {[%clk
0:01:35.5]} 25... Qxd3 {[%clk 0:00:39.1]} 26. cxd3 {[%clk 0:01:36.4]} 26... gxf6
{[%clk 0:00:39.5]} 27. Be2 {[%clk 0:01:20.7]} 27... f5 {[%clk 0:00:33.9]} 28.
Kg2 {[%clk 0:01:15.4]} 28... fxe4 {[%clk 0:00:33.2]} 29. Nxe4 {[%clk 0:01:12]}
29... Bxe4+ {[%clk 0:00:32.4]} 30. dxe4 {[%clk 0:01:12]} 30... bxa4 {[%clk
0:00:32.3]} 31. bxa4 {[%clk 0:01:12.1]} 31... e5 {[%clk 0:00:28.2]} 32. f4
{[%clk 0:01:09.2]} 32... Bd4 {[%clk 0:00:26.5]} 33. Kf3 {[%clk 0:01:07.6]} 33...
Kg7 {[%clk 0:00:26.2]} 34. Kg4 {[%clk 0:01:05]} 34... Kf6 {[%clk 0:00:25.2]} 35.
Bc4 {[%clk 0:01:03.7]} 35... c5 {[%clk 0:00:24]} 36. Bd5 {[%clk 0:01:02.4]}
36... Kg6 {[%clk 0:00:19.8]} 37. h4 {[%clk 0:00:58.2]} 37... exf4 {[%clk
0:00:10.3]} 38. gxf4 {[%clk 0:00:56.6]} 38... f6 {[%clk 0:00:10.1]} 39. h5+
{[%clk 0:00:52.3]} 39... Kg7 {[%clk 0:00:09.9]} 40. Kf5 {[%clk 0:00:53]} 40...
Bc3 {[%clk 0:00:08.4]} 41. Ke6 {[%clk 0:00:49.7]} 41... Bd4 {[%clk 0:00:06.9]}
42. Bc4 {[%clk 0:00:42.3]} 42... Be3 {[%clk 0:00:06.4]} 43. e5 {[%clk
0:00:41.1]} 43... fxe5 {[%clk 0:00:04.9]} 44. fxe5 {[%clk 0:00:41]} 44... Kf8
{[%clk 0:00:04.7]} 45. Bb5 {[%clk 0:00:40.7]} 45... Bf4 {[%clk 0:00:03.4]} 46.
Kf6 {[%clk 0:00:39.2]} 46... Bg3 {[%clk 0:00:03.2]} 47. e6 {[%clk 0:00:31.8]}
47... Bh4+ {[%clk 0:00:03.3]} 48. Ke5 {[%clk 0:00:32.1]} 48... Bg5 {[%clk
0:00:03.3]} 49. Kd6 {[%clk 0:00:30]} 49... Be7+ {[%clk 0:00:02.6]} 50. Kc6
{[%clk 0:00:30.3]} 50... Kg7 {[%clk 0:00:02.9]} 51. Kb6 {[%clk 0:00:29.6]} 51...
Bd8+ {[%clk 0:00:03]} 52. Kxc5 {[%clk 0:00:29.3]} 52... Kf6 {[%clk 0:00:03.7]}
53. Kd6 {[%clk 0:00:29.4]} 53... Be7+ {[%clk 0:00:03.3]} 54. Kd7 {[%clk
0:00:29.5]} 54... Bb4 {[%clk 0:00:04.2]} 55. Bc4 {[%clk 0:00:27.8]} 55... Be7
{[%clk 0:00:05.1]} 56. Kc6 {[%clk 0:00:26.5]} 56... Bb4 {[%clk 0:00:06]} 57. Kd5
{[%clk 0:00:26.4]} 57... Be7 {[%clk 0:00:05.5]} 58. Ke4 {[%clk 0:00:25.6]} 58...
Bb4 {[%clk 0:00:06.4]} 59. Bd5 {[%clk 0:00:23.9]} 59... Be7 {[%clk 0:00:06.3]}
60. Kd4 {[%clk 0:00:24]} 60... Bb4 {[%clk 0:00:07.2]} 61. Kc4 {[%clk 0:00:23.6]}
61... Be7 {[%clk 0:00:07.1]} 62. Kb5 {[%clk 0:00:23.5]} 62... Bb4 {[%clk
0:00:08]} 63. Kc6 {[%clk 0:00:23.3]} 63... Be7 {[%clk 0:00:07.3]} 64. Kd7 {[%clk
0:00:23.4]} 64... Bb4 {[%clk 0:00:08.2]} 65. Bc6 {[%clk 0:00:19.4]} 65... Be7
{[%clk 0:00:07.5]} 66. Bb5 {[%clk 0:00:19.3]} 66... Bb4 {[%clk 0:00:08.4]} 67.
Ba6 {[%clk 0:00:19.5]} 67... Be7 {[%clk 0:00:08]} 68. Bc8 {[%clk 0:00:19.4]}
68... Bb4 {[%clk 0:00:08.9]} 69. Kc6 {[%clk 0:00:19.5]} 69... Be7 {[%clk
0:00:08.6]} 70. Kb7 {[%clk 0:00:18.9]} 70... Bb4 {[%clk 0:00:09.5]} 71. Kb6
{[%clk 0:00:19.3]} 71... Ke7 {[%clk 0:00:09]} 72. Bd7 {[%clk 0:00:18.2]} 72...
Kf6 {[%clk 0:00:08.9]} 73. Kb5 {[%clk 0:00:17.3]} 73... Ke7 {[%clk 0:00:09]} 74.
Kc4 {[%clk 0:00:17.4]} 74... Kf6 {[%clk 0:00:09]} 75. Kd5 {[%clk 0:00:17.2]}
75... Be7 {[%clk 0:00:08.4]} 76. Ke4 {[%clk 0:00:16.5]} 76... Bb4 {[%clk
0:00:09.3]} 77. Kd4 {[%clk 0:00:16.8]} 77... Be7 {[%clk 0:00:09.1]} 78. Kc4
{[%clk 0:00:16.7]} 78... Bb4 {[%clk 0:00:10]} 79. Kb5 {[%clk 0:00:17.4]} 79...
Ke7 {[%clk 0:00:09.9]} 80. Bc8 {[%clk 0:00:16.4]} 80... Kf6 {[%clk 0:00:09.7]}
81. Ka6 {[%clk 0:00:14.6]} 81... Ke7 {[%clk 0:00:09.7]} 82. Bd7 {[%clk
0:00:14.4]} 82... Kf6 {[%clk 0:00:09.8]} 83. Kb7 {[%clk 0:00:14.4]} 83... Ke7
{[%clk 0:00:09.9]} 84. Kc6 {[%clk 0:00:14.6]} 84... Kf6 {[%clk 0:00:09.7]} 85.
Kd5 {[%clk 0:00:14.9]} 85... Be7 {[%clk 0:00:09.6]} 86. Bb5 {[%clk 0:00:15]}
86... Bb4 {[%clk 0:00:10.5]} 87. Bc4 {[%clk 0:00:15]} 87... Ke7 {[%clk
0:00:10.5]} 88. Ba2 {[%clk 0:00:14.6]} 88... Kf6 {[%clk 0:00:10.3]} 89. Bb3
{[%clk 0:00:14.3]} 89... Be7 {[%clk 0:00:10.2]} 90. Kc6 {[%clk 0:00:13.5]} 90...
Bb4 {[%clk 0:00:11.1]} 91. Kb5 {[%clk 0:00:13.7]} 91... Ke7 {[%clk 0:00:10.8]}
92. Kc4 {[%clk 0:00:12.8]} 92... Kxe6 {[%clk 0:00:10.2]} 93. Kb5+ {[%clk
0:00:12.1]} 93... Kf6 {[%clk 0:00:10.4]} 94. Bc2 {[%clk 0:00:10.5]} 94... Kg5
{[%clk 0:00:11.3]} 95. Bg6 {[%clk 0:00:11.3]} 95... Be1 {[%clk 0:00:10.7]} 96.
Kc4 {[%clk 0:00:11.4]} 96... Bb4 {[%clk 0:00:11]} 97. Kb5 {[%clk 0:00:11.6]}
97... Be1 {[%clk 0:00:11.1]} 98. Kc4 {[%clk 0:00:11.7]} 98... Bb4 {[%clk
0:00:11.1]} 99. Kb5 {[%clk 0:00:12]} 1/2-1/2

[Event "*** SCC Grand Prix: Titled Tuesday Blitz"]
[Site "Chess.com"]
[Date "2020.07.14"]
[Round "10"]
[White "Nayemhaque22"]
[Black "Kolle05"]
[Result "0-1"]
[WhiteElo "2220"]
[BlackElo "2371"]
[TimeControl "180+1"]
[EndTime "12:01:01 PDT"]
[Termination "Kolle05 won by resignation"]

1. e4 {[%clk 0:02:57.8]} 1... c5 {[%clk 0:02:59.4]} 2. Nf3 {[%clk 0:02:56]} 2...
d6 {[%clk 0:02:59.4]} 3. Bb5+ {[%clk 0:02:52.7]} 3... Nd7 {[%clk 0:02:58.4]} 4.
O-O {[%clk 0:02:52.2]} 4... a6 {[%clk 0:02:54.7]} 5. Be2 {[%clk 0:02:50.5]} 5...
Ngf6 {[%clk 0:02:53.4]} 6. Nc3 {[%clk 0:02:49.2]} 6... e5 {[%clk 0:02:51.7]} 7.
b3 {[%clk 0:02:48.6]} 7... g6 {[%clk 0:02:51.3]} 8. Bb2 {[%clk 0:02:48]} 8...
Bg7 {[%clk 0:02:51.5]} 9. d3 {[%clk 0:02:47]} 9... O-O {[%clk 0:02:51.4]} 10.
Nd5 {[%clk 0:02:46.8]} 10... Nxd5 {[%clk 0:02:50.2]} 11. exd5 {[%clk 0:02:47.7]}
11... b5 {[%clk 0:02:49.7]} 12. Nd2 {[%clk 0:02:46.8]} 12... f5 {[%clk
0:02:46.6]} 13. f4 {[%clk 0:02:44.8]} 13... exf4 {[%clk 0:02:40]} 14. Bxg7
{[%clk 0:02:42.6]} 14... Kxg7 {[%clk 0:02:40.9]} 15. Rxf4 {[%clk 0:02:42.9]}
15... Ne5 {[%clk 0:02:41]} 16. d4 {[%clk 0:02:40.5]} 16... cxd4 {[%clk
0:02:37.9]} 17. Rxd4 {[%clk 0:02:38]} 17... Qb6 {[%clk 0:02:36]} 18. c3 {[%clk
0:02:36.7]} 18... Bb7 {[%clk 0:02:28.3]} 19. Kh1 {[%clk 0:02:34.9]} 19... Rac8
{[%clk 0:02:26.9]} 20. Rc1 {[%clk 0:02:26.8]} 20... Qc5 {[%clk 0:02:07.6]} 21.
Nf3 {[%clk 0:02:24.3]} 21... Ng4 {[%clk 0:01:56.9]} 22. Qd2 {[%clk 0:02:19.8]}
22... h6 {[%clk 0:01:52.3]} 23. Kg1 {[%clk 0:02:03]} 23... Rfe8 {[%clk
0:01:42.2]} 24. h3 {[%clk 0:01:58.8]} 24... Nf6 {[%clk 0:01:38.8]} 25. b4 {[%clk
0:01:32]} 25... Qb6 {[%clk 0:01:32]} 26. Kh2 {[%clk 0:01:28.9]} 26... Bxd5
{[%clk 0:01:12.1]} 27. Bd1 {[%clk 0:01:16.7]} 27... Ne4 {[%clk 0:00:56.7]} 28.
Qf4 {[%clk 0:00:57.5]} 28... Qc6 {[%clk 0:00:49.5]} 29. Nh4 {[%clk 0:00:40.1]}
29... Nf6 {[%clk 0:00:34.1]} 30. Qg3 {[%clk 0:00:33.6]} 30... Bf7 {[%clk
0:00:18.9]} 31. Nxf5+ {[%clk 0:00:32.7]} 31... Kh7 {[%clk 0:00:19.3]} 32. Nxd6
{[%clk 0:00:27.6]} 32... Red8 {[%clk 0:00:12.3]} 33. Qf4 {[%clk 0:00:17.1]}
33... Kg7 {[%clk 0:00:07.9]} 34. Bf3 {[%clk 0:00:13.6]} 34... Qc7 {[%clk
0:00:02.8]} 35. Nxc8 {[%clk 0:00:11.6]} 35... Qxc8 {[%clk 0:00:03.7]} 36. Rxd8
{[%clk 0:00:10.1]} 36... Qxd8 {[%clk 0:00:04.6]} 37. Rd1 {[%clk 0:00:10.2]}
37... Qe7 {[%clk 0:00:03]} 38. Qd4 {[%clk 0:00:08.6]} 38... g5 {[%clk
0:00:02.3]} 39. Rf1 {[%clk 0:00:08.2]} 39... Bg6 {[%clk 0:00:01.7]} 40. Bg4
{[%clk 0:00:04.5]} 40... Kf7 {[%clk 0:00:01.9]} 41. Bf5 {[%clk 0:00:03.5]} 41...
Bxf5 {[%clk 0:00:01.4]} 42. Rxf5 {[%clk 0:00:04.4]} 42... Kg6 {[%clk 0:00:02.3]}
43. Rf1 {[%clk 0:00:02.7]} 43... Qe6 {[%clk 0:00:02.4]} 44. Kh1 {[%clk
0:00:03.6]} 44... Ne4 {[%clk 0:00:02.4]} 45. Qd3 {[%clk 0:00:04.1]} 45... Kg7
{[%clk 0:00:02.5]} 46. Rf3 {[%clk 0:00:02.8]} 46... g4 {[%clk 0:00:01.3]} 47.
hxg4 {[%clk 0:00:02.2]} 47... Ng5 {[%clk 0:00:01.7]} 48. Rf7+ {[%clk 0:00:02.3]}
48... Qxf7 {[%clk 0:00:01.4]} 49. Qd4+ {[%clk 0:00:02.7]} 49... Qf6 {[%clk
0:00:02.3]} 50. Qd7+ {[%clk 0:00:02.2]} 50... Qf7 {[%clk 0:00:02.4]} 51. Qd4+
{[%clk 0:00:03]} 51... Qf6 {[%clk 0:00:02.8]} 52. Qd7+ {[%clk 0:00:02.7]} 52...
Kg6 {[%clk 0:00:03.1]} 53. Qd4 {[%clk 0:00:03.6]} 53... Qxd4 {[%clk 0:00:02.4]}
54. cxd4 {[%clk 0:00:04.5]} 54... Kf6 {[%clk 0:00:03.3]} 55. d5 {[%clk
0:00:05.4]} 55... Ke5 {[%clk 0:00:03.2]} 56. d6 {[%clk 0:00:05.9]} 56... Kxd6
{[%clk 0:00:03.6]} 57. Kh2 {[%clk 0:00:05.1]} 57... Ke5 {[%clk 0:00:03.9]} 58.
Kg3 {[%clk 0:00:06]} 58... Ke4 {[%clk 0:00:03.4]} 59. Kh4 {[%clk 0:00:06.9]}
59... Kf4 {[%clk 0:00:03.1]} 60. Kh5 {[%clk 0:00:07.8]} 60... Ne4 {[%clk
0:00:01.8]} 61. Kxh6 {[%clk 0:00:08.7]} 61... Kxg4 {[%clk 0:00:02.3]} 62. Kg6
{[%clk 0:00:08.5]} 62... Kg3 {[%clk 0:00:03.2]} 63. Kf5 {[%clk 0:00:07.5]} 63...
Nc3 {[%clk 0:00:03.8]} 64. a3 {[%clk 0:00:07.7]} 64... Nb1 {[%clk 0:00:04.2]}
65. Ke5 {[%clk 0:00:08.6]} 65... Nxa3 {[%clk 0:00:04.5]} 66. Kd4 {[%clk
0:00:09.5]} 66... Nc2+ {[%clk 0:00:04]} 67. Kc3 {[%clk 0:00:10.4]} 67... Nxb4
{[%clk 0:00:04.9]} 68. Kxb4 {[%clk 0:00:10.2]} 68... Kxg2 {[%clk 0:00:05.8]} 69.
Ka5 {[%clk 0:00:11.1]} 69... Kf3 {[%clk 0:00:06.4]} 70. Kxa6 {[%clk 0:00:12]}
70... b4 {[%clk 0:00:06.6]} 71. Kb5 {[%clk 0:00:12.9]} 71... b3 {[%clk
0:00:07.5]} 72. Ka4 {[%clk 0:00:13.8]} 72... b2 {[%clk 0:00:08.4]} 73. Kb3
{[%clk 0:00:14.7]} 73... b1=Q+ {[%clk 0:00:09.3]} 74. Ka3 {[%clk 0:00:15.6]}
74... Qc2 {[%clk 0:00:08.7]} 0-1